fUSD/lending_fUSD_20250519
["ID","MTS","AMOUNT","RATE_DAILY","PERIOD"]
[361561340,1747613456453,-400.0,0.00013808,2]
[361561342,1747613456462,-764.49,0.00013808,2]
[361561344,1747613456472,-492.05,0.00013808,2]
[361561346,1747613456481,-400.0,0.00013808,2]
[361561348,1747613456492,-1085.95,0.00013808,2]
[361561350,1747613456501,-400.0,0.00013808,2]
[361561352,1747613456510,-11735.32,0.00013808,2]
[361561354,1747613456520,-400.0,0.00013808,2]
[361561356,1747613456529,-154.390768,0.00013808,2]
[361561358,1747613456538,-400.0,0.00013808,2]
[361561360,1747613456547,-706.95,0.00013808,2]
[361561362,1747613456556,-785.74,0.00013808,2]
[361561364,1747613456566,-723.01,0.00013808,2]
[361561366,1747613456576,-2053.55,0.00013808,2]
[361561368,1747613456585,-400.0,0.00013808,2]
[361561370,1747613456594,-7959.7,0.00013808,2]
[361561372,1747613456604,-1115.52,0.00013808,2]
[361561374,1747613456612,-158.058379,0.00013808,2]
[361561376,1747613456622,-785.84,0.00013808,2]
[361561378,1747613456631,-640.43,0.00013808,2]
[361561380,1747613456640,-400.0,0.00013808,2]
[361561382,1747613456650,-505.09,0.00013808,2]
[361561384,1747613456659,-400.0,0.00013808,2]
[361561386,1747613456668,-400.0,0.00013808,2]
[361561387,1747613456677,-400.0,0.00013808,2]
[361561389,1747613456686,-1144.51,0.00013808,2]
[361561391,1747613456695,-819.95,0.00013808,2]
[361561393,1747613456705,-1275.77,0.00013808,2]
[361561395,1747613456714,-612.55,0.00013808,2]
[361561397,1747613456723,-400.0,0.00013808,2]
[361561399,1747613456732,-400.0,0.00013808,2]
[361561401,1747613456741,-896.95,0.00013808,2]
[361561403,1747613456750,-853.73225352,0.00013848,2]
[361561405,1747613456761,-500.0,0.00013866,2]
[361561407,1747613456771,-191.736,0.00013887,2]
[361561409,1747613456780,-284.079,0.00013887,2]
[361561411,1747613456789,-238.851,0.00013887,2]
[361561413,1747613456800,-269.134,0.00013887,2]
[361561415,1747613456810,-183.059,0.00013887,2]
[361561417,1747613456819,-203.36,0.00013887,2]
[361561419,1747613456829,-1028.67447274,0.00013898,2]
[361561421,1747613456838,-260.843,0.00013898,2]
[361561423,1747613456848,-164.1770442,0.000139,2]
[361561426,1747613456867,-1305.0,0.00013907,2]
[361561428,1747613456878,-932.0,0.00013907,2]
[361561430,1747613456887,-798.0,0.00013907,2]
[361561432,1747613456899,-628.0,0.00013907,2]
[361561434,1747613456908,-583.0,0.00013907,2]
[361561436,1747613456918,-1250.0,0.00013907,2]
[361561438,1747613456927,-917.0,0.00013907,2]
[361561440,1747613456937,-1456.0,0.00013907,2]
[361561442,1747613456946,-553.0,0.00013907,2]
[361561444,1747613456956,-151.0,0.00013907,2]
[361561446,1747613456965,-151.0,0.00013907,2]
[361561448,1747613456974,-198.489438,0.00013907,2]
[361561450,1747613456984,-198.489438,0.00013907,2]
[361561452,1747613456994,-151.0,0.00013907,2]
[361561454,1747613457004,-151.0,0.00013907,2]
[361561456,1747613457014,-255.0,0.00013914,2]
[361561458,1747613457024,-1935.68,0.00013916,2]
[361561460,1747613457033,-1935.68,0.00013916,2]
[361561462,1747613457043,-400.0,0.00013917,2]
[361561464,1747613457053,-400.0,0.00013917,2]
[361561467,1747613457068,-3586.705221,0.00013917,2]
[361561469,1747613457078,-565.22,0.00013917,2]
[361561471,1747613457087,-400.0,0.00013917,2]
[361561473,1747613457097,-1242.986441,0.00013917,2]
[361561475,1747613457110,-452.57,0.00013917,2]
[361561477,1747613457120,-497.2,0.00013917,2]
[361561479,1747613457130,-405.61,0.00013917,2]
[361561481,1747613457141,-409.7,0.00013917,2]
[361561483,1747613457151,-507.44,0.00013917,2]
[361561485,1747613457161,-400.0,0.00013917,2]
[361561487,1747613457170,-400.0,0.00013917,2]
[361561489,1747613457181,-400.0,0.00013917,2]
[361561491,1747613457191,-400.0,0.00013917,2]
[361561493,1747613457201,-400.0,0.00013917,2]
[361561494,1747613457211,-455.84,0.00013917,2]
[361561495,1747613457221,-167.937231,0.00013917,2]
[361561496,1747613457231,-400.0,0.00013917,2]
[361561497,1747613457241,-400.0,0.00013917,2]
[361561498,1747613457251,-400.0,0.00013917,2]
[361561499,1747613457261,-633.66,0.00013917,2]
[361561500,1747613457270,-151.0,0.00013917,2]
[361561501,1747613457280,-268.777743,0.00013917,2]
[361561502,1747613457289,-400.0,0.00013917,2]
[361561504,1747613457299,-704.71,0.00013917,2]
[361561506,1747613457309,-439.55,0.00013917,2]
[361561508,1747613457318,-400.0,0.00013917,2]
[361561509,1747613457328,-467.62,0.00013917,2]
[361561511,1747613457337,-400.0,0.00013917,2]
[361561512,1747613457347,-494.5,0.00013917,2]
[361561513,1747613457359,-628.03,0.00013917,2]
[361561514,1747613457369,-400.0,0.00013917,2]
[361561515,1747613457379,-400.0,0.00013917,2]
[361561516,1747613457389,-151.0,0.00013917,2]
[361561517,1747613457399,-1352.43,0.00013917,2]
[361561518,1747613457408,-927.19,0.00013917,2]
[361561519,1747613457419,-408.88,0.00013917,2]
[361561520,1747613457429,-459.75,0.00013917,2]
[361561521,1747613457439,-400.0,0.00013917,2]
[361561522,1747613457450,-1048.53,0.00013917,2]
[361561523,1747613457460,-400.0,0.00013917,2]
[361561524,1747613457470,-151.0,0.00013917,2]
[361561525,1747613457480,-1877.93,0.00013917,2]
[361561526,1747613457491,-400.0,0.00013917,2]
[361561527,1747613457500,-400.0,0.00013917,2]
[361561528,1747613457511,-713.76,0.00013917,2]
[361561529,1747613457521,-400.0,0.00013917,2]
[361561530,1747613457531,-151.0,0.00013917,2]
[361561531,1747613457542,-400.0,0.00013917,2]
[361561532,1747613457551,-835.57,0.00013917,2]
[361561533,1747613457561,-459.32,0.00013917,2]
[361561534,1747613457571,-151.0,0.00013917,2]
[361561535,1747613457581,-151.0,0.00013917,2]
[361561536,1747613457591,-400.0,0.00013917,2]
[361561537,1747613457601,-400.0,0.00013917,2]
[361561538,1747613457612,-609.12,0.00013917,2]
[361561539,1747613457622,-634.39,0.00013917,2]
[361561540,1747613457632,-369.77390065,0.00013917,2]
[361561541,1747613457642,-151.0,0.00013917,2]
[361561542,1747613457652,-631.54,0.00013917,2]
[361561543,1747613457662,-400.0,0.00013917,2]
[361561544,1747613457672,-151.0,0.00013917,2]
[361561545,1747613457681,-400.0,0.00013917,2]
[361561546,1747613457691,-400.0,0.00013917,2]
[361561547,1747613457701,-657.21,0.00013917,2]
[361561548,1747613457711,-711.53,0.00013917,2]
[361561549,1747613457721,-400.0,0.00013917,2]
[361561550,1747613457731,-400.0,0.00013917,2]
[361561551,1747613457740,-400.0,0.00013917,2]
[361561552,1747613457750,-400.0,0.00013917,2]
[361561553,1747613457760,-151.0,0.00013917,2]
[361561554,1747613457770,-1207.68,0.00013917,2]
[361561555,1747613457780,-400.0,0.00013917,2]
[361561556,1747613457790,-400.0,0.00013917,2]
[361561557,1747613457800,-473.25,0.00013917,2]
[361561558,1747613457810,-400.0,0.00013917,2]
[361561559,1747613457821,-400.0,0.00013917,2]
[361561560,1747613457832,-400.0,0.00013917,2]
[361561561,1747613457842,-826.29,0.00013917,2]
[361561562,1747613457853,-400.0,0.00013917,2]
[361561563,1747613457865,-151.0,0.00013917,2]
[361561564,1747613457875,-151.0,0.00013917,2]
[361561565,1747613457885,-400.0,0.00013917,2]
[361561566,1747613457895,-400.0,0.00013917,2]
[361561567,1747613457905,-151.0,0.00013917,2]
[361561568,1747613457916,-497.95,0.00013917,2]
[361561569,1747613457926,-150.0,0.00013917,2]
[361561570,1747613457937,-592.82,0.00013917,2]
[361561571,1747613457947,-588.52,0.00013917,2]
[361561572,1747613457957,-616.5,0.00013917,2]
[361561573,1747613457968,-400.0,0.00013917,2]
[361561574,1747613457978,-400.0,0.00013917,2]
[361561575,1747613457988,-418.18,0.00013917,2]
[361561576,1747613457998,-471.1,0.00013917,2]
[361561577,1747613458008,-479.57,0.00013917,2]
[361561578,1747613458018,-410.04,0.00013917,2]
[361561579,1747613458029,-400.0,0.00013917,2]
[361561580,1747613458039,-400.0,0.00013917,2]
[361561581,1747613458049,-400.0,0.00013917,2]
[361561582,1747613458059,-400.0,0.00013917,2]
[361561583,1747613458072,-426.4,0.00013917,2]
[361561584,1747613458082,-400.0,0.00013917,2]
[361561585,1747613458092,-459.73,0.00013917,2]
[361561586,1747613458102,-151.0,0.00013917,2]
[361561587,1747613458115,-400.0,0.00013917,2]
[361561588,1747613458125,-400.0,0.00013917,2]
[361561589,1747613458135,-618.08,0.00013917,2]
[361561590,1747613458147,-400.0,0.00013917,2]
[361561591,1747613458157,-400.0,0.00013917,2]
[361561592,1747613458167,-447.12,0.00013917,2]
[361561593,1747613458177,-539.5,0.00013917,2]
[361561594,1747613458188,-400.0,0.00013917,2]
[361561595,1747613458198,-400.0,0.00013917,2]
[361561596,1747613458209,-641.06,0.00013917,2]
[361561597,1747613458219,-427.92,0.00013917,2]
[361561598,1747613458230,-400.0,0.00013917,2]
[361561599,1747613458241,-151.0,0.00013917,2]
[361561600,1747613458251,-441.53,0.00013917,2]
[361561601,1747613458263,-562.55,0.00013917,2]
[361561602,1747613458274,-151.0,0.00013917,2]
[361561603,1747613458284,-400.0,0.00013917,2]
[361561604,1747613458295,-400.0,0.00013917,2]
[361561605,1747613458306,-400.0,0.00013917,2]
[361561606,1747613458318,-449.59,0.00013917,2]
[361561607,1747613458328,-559.02,0.00013917,2]
[361561608,1747613458339,-152.990188,0.00013917,2]
[361561609,1747613458349,-400.0,0.00013917,2]
[361561610,1747613458359,-151.0,0.00013917,2]
[361561611,1747613458370,-400.0,0.00013917,2]
[361561612,1747613458380,-151.0,0.00013917,2]
[361561613,1747613458392,-500.7,0.00013917,2]
[361561614,1747613458402,-400.0,0.00013917,2]
[361561615,1747613458412,-851.56,0.00013917,2]
[361561616,1747613458422,-677.7,0.00013917,2]
[361561617,1747613458432,-587.91,0.00013917,2]
[361561618,1747613458442,-588.51,0.00013917,2]
[361561619,1747613458452,-400.0,0.00013917,2]
[361561620,1747613458462,-400.0,0.00013917,2]
[361561621,1747613458471,-771.83,0.00013917,2]
[361561622,1747613458482,-151.0,0.00013917,2]
[361561623,1747613458492,-400.0,0.00013917,2]
[361561624,1747613458502,-400.0,0.00013917,2]
[361561625,1747613458512,-494.15,0.00013917,2]
[361561626,1747613458522,-151.0,0.00013917,2]
[361561627,1747613458531,-546.68,0.00013917,2]
[361561628,1747613458541,-400.0,0.00013917,2]
[361561629,1747613458551,-400.0,0.00013917,2]
[361561630,1747613458562,-400.0,0.00013917,2]
[361561631,1747613458573,-151.0,0.00013917,2]
[361561632,1747613458583,-151.0,0.00013917,2]
[361561633,1747613458594,-400.0,0.00013917,2]
[361561634,1747613458607,-400.0,0.00013917,2]
[361561635,1747613458616,-400.0,0.00013917,2]
[361561636,1747613458626,-403.43,0.00013917,2]
[361561637,1747613458636,-741.81,0.00013917,2]
[361561638,1747613458646,-658.61,0.00013917,2]
[361561639,1747613458655,-1102.4,0.00013917,2]
[361561640,1747613458665,-151.0,0.00013917,2]
[361561641,1747613458675,-400.0,0.00013917,2]
[361561642,1747613458685,-400.0,0.00013917,2]
[361561643,1747613458695,-400.0,0.00013917,2]
[361561644,1747613458705,-151.0,0.00013917,2]
[361561645,1747613458714,-1213.44,0.00013917,2]
[361561646,1747613458724,-250.0,0.00013917,2]
[361561647,1747613458734,-534.25,0.00013917,2]
[361561648,1747613458744,-422.14,0.00013917,2]
[361561649,1747613458753,-766.64,0.00013917,2]
[361561650,1747613458763,-400.0,0.00013917,2]
[361561651,1747613458773,-499.86,0.00013917,2]
[361561652,1747613458783,-400.0,0.00013917,2]
[361561653,1747613458793,-400.0,0.00013917,2]
[361561654,1747613458804,-501.08,0.00013917,2]
[361561655,1747613458813,-400.0,0.00013917,2]
[361561656,1747613458823,-626.18,0.00013917,2]
[361561657,1747613458833,-429.13,0.00013917,2]
[361561658,1747613458843,-400.0,0.00013917,2]
[361561659,1747613458853,-513.45,0.00013917,2]
[361561660,1747613458865,-879.68,0.00013917,2]
[361561661,1747613458875,-1075.93,0.00013917,2]
[361561662,1747613458885,-400.0,0.00013917,2]
[361561663,1747613458895,-531.98,0.00013917,2]
[361561664,1747613458905,-400.0,0.00013917,2]
[361561665,1747613458915,-229.77161855,0.00013917,2]
[361561666,1747613458925,-460.85,0.00013917,2]
[361561667,1747613458936,-400.0,0.00013917,2]
[361561668,1747613458946,-400.0,0.00013917,2]
[361561669,1747613458956,-937.71,0.00013917,2]
[361561670,1747613458967,-486.5,0.00013917,2]
[361561671,1747613458976,-400.0,0.00013917,2]
[361561672,1747613458987,-400.0,0.00013917,2]
[361561673,1747613458997,-650.85,0.00013917,2]
[361561674,1747613459008,-400.0,0.00013917,2]
[361561675,1747613459018,-224.70199136,0.00013917,2]
[361561676,1747613459028,-400.0,0.00013917,2]
[361561677,1747613459038,-400.0,0.00013917,2]
[361561678,1747613459048,-467.9,0.00013917,2]
[361561679,1747613459058,-400.0,0.00013917,2]
[361561680,1747613459072,-830.24,0.00013917,2]
[361561681,1747613459082,-400.0,0.00013917,2]
[361561682,1747613459092,-449.7,0.00013917,2]
[361561683,1747613459102,-1089.27,0.00013917,2]
[361561684,1747613459116,-400.0,0.00013917,2]
[361561685,1747613459127,-1360.54,0.00013917,2]
[361561686,1747613459138,-400.0,0.00013917,2]
[361561687,1747613459148,-400.0,0.00013917,2]
[361561688,1747613459158,-168.15643966,0.00013917,2]
[361561689,1747613459169,-400.0,0.00013917,2]
[361561690,1747613459179,-400.0,0.00013917,2]
[361561691,1747613459189,-400.0,0.00013917,2]
[361561692,1747613459199,-487.44,0.00013917,2]
[361561693,1747613459209,-151.0,0.00013917,2]
[361561694,1747613459219,-151.0,0.00013917,2]
[361561695,1747613459229,-151.0,0.00013917,2]
[361561696,1747613459239,-832.93,0.00013917,2]
[361561697,1747613459248,-151.0,0.00013917,2]
[361561698,1747613459259,-428.83,0.00013917,2]
[361561699,1747613459269,-151.0,0.00013917,2]
[361561700,1747613459279,-151.0,0.00013917,2]
[361561701,1747613459290,-400.0,0.00013917,2]
[361561702,1747613459609,-816.97,0.00013917,2]
[361561703,1747613459621,-400.0,0.00013917,2]
[361561704,1747613459631,-400.0,0.00013917,2]
[361561705,1747613459641,-151.0,0.00013917,2]
[361561706,1747613459651,-651.71,0.00013917,2]
[361561707,1747613459661,-151.0,0.00013917,2]
[361561708,1747613459670,-488.74,0.00013917,2]
[361561709,1747613459680,-723.76,0.00013917,2]
[361561710,1747613459691,-400.0,0.00013917,2]
[361561711,1747613459700,-630.86,0.00013917,2]
[361561712,1747613459709,-400.0,0.00013917,2]
[361561713,1747613459719,-1110.16,0.00013917,2]
[361561714,1747613459728,-400.0,0.00013917,2]
[361561715,1747613459738,-727.43,0.00013917,2]
[361561716,1747613459747,-400.0,0.00013917,2]
[361561717,1747613459757,-757.87,0.00013917,2]
[361561718,1747613459766,-400.0,0.00013917,2]
[361561719,1747613459776,-400.0,0.00013917,2]
[361561720,1747613459786,-445.38,0.00013917,2]
[361561721,1747613459795,-400.0,0.00013917,2]
[361561722,1747613459805,-400.0,0.00013917,2]
[361561723,1747613459815,-1132.99,0.00013917,2]
[361561724,1747613459824,-151.0,0.00013917,2]
[361561725,1747613459834,-400.0,0.00013917,2]
[361561726,1747613459844,-151.0,0.00013917,2]
[361561727,1747613459853,-151.0,0.00013917,2]
[361561728,1747613459865,-151.0,0.00013917,2]
[361561729,1747613459875,-400.0,0.00013917,2]
[361561730,1747613459885,-1200.78,0.00013917,2]
[361561731,1747613459895,-400.0,0.00013917,2]
[361561732,1747613459904,-400.0,0.00013917,2]
[361561733,1747613459914,-1077.56,0.00013917,2]
[361561734,1747613459924,-457.22,0.00013917,2]
[361561735,1747613459934,-151.0,0.00013917,2]
[361561736,1747613459944,-151.0,0.00013917,2]
[361561737,1747613459954,-400.0,0.00013917,2]
[361561738,1747613459963,-460.53,0.00013917,2]
[361561739,1747613459973,-400.0,0.00013917,2]
[361561740,1747613459982,-623.47,0.00013917,2]
[361561741,1747613459992,-1443.77,0.00013917,2]
[361561742,1747613460002,-594.27,0.00013917,2]
[361561743,1747613460012,-151.0,0.00013917,2]
[361561744,1747613460021,-400.0,0.00013917,2]
[361561745,1747613460031,-459.24,0.00013917,2]
[361561746,1747613460041,-729.87,0.00013917,2]
[361561747,1747613460050,-151.0,0.00013917,2]
[361561748,1747613460060,-400.0,0.00013917,2]
[361561749,1747613460073,-151.0,0.00013917,2]
[361561750,1747613460082,-400.0,0.00013917,2]
[361561751,1747613460092,-456.53,0.00013917,2]
[361561752,1747613460101,-151.0,0.00013917,2]
[361561753,1747613460115,-151.0,0.00013917,2]
[361561754,1747613460125,-400.0,0.00013917,2]
[361561755,1747613460135,-781.82,0.00013917,2]
[361561756,1747613460146,-593.59,0.00013917,2]
[361561757,1747613460156,-400.0,0.00013917,2]
[361561758,1747613460165,-400.0,0.00013917,2]
[361561759,1747613460174,-400.0,0.00013917,2]
[361561760,1747613460184,-400.0,0.00013917,2]
[361561761,1747613460193,-507.42,0.00013917,2]
[361561762,1747613460202,-1144.03,0.00013917,2]
[361561763,1747613460212,-151.0,0.00013917,2]
[361561764,1747613460221,-400.0,0.00013917,2]
[361561765,1747613460231,-151.0,0.00013917,2]
[361561766,1747613460244,-151.0,0.00013917,2]
[361561767,1747613460254,-285.438176,0.00013917,2]
[361561768,1747613460264,-841.73,0.00013917,2]
[361561769,1747613460274,-400.0,0.00013917,2]
[361561770,1747613460284,-400.0,0.00013917,2]
[361561771,1747613460296,-400.0,0.00013917,2]
[361561772,1747613460305,-400.0,0.00013917,2]
[361561773,1747613460314,-583.31,0.00013917,2]
[361561774,1747613460324,-400.0,0.00013917,2]
[361561775,1747613460334,-395.34457749,0.00013917,2]
[361561776,1747613460343,-151.0,0.00013917,2]
[361561777,1747613460353,-802.56,0.00013917,2]
[361561778,1747613460365,-400.0,0.00013917,2]
[361561779,1747613460375,-400.0,0.00013917,2]
[361561780,1747613460385,-421.58,0.00013917,2]
[361561781,1747613460394,-151.0,0.00013917,2]
[361561782,1747613460403,-200.17,0.00013917,2]
[361561783,1747613460413,-400.0,0.00013917,2]
[361561784,1747613460423,-400.0,0.00013917,2]
[361561785,1747613460432,-1984.02,0.00013917,2]
[361561786,1747613460442,-414.48,0.00013917,2]
[361561787,1747613460451,-400.0,0.00013917,2]
[361561788,1747613460461,-400.0,0.00013917,2]
[361561789,1747613460470,-400.0,0.00013917,2]
[361561790,1747613460480,-987.86,0.00013917,2]
[361561791,1747613460489,-151.0,0.00013917,2]
[361561792,1747613460499,-400.0,0.00013917,2]
[361561793,1747613460508,-151.0,0.00013917,2]
[361561794,1747613460518,-521.65,0.00013917,2]
[361561795,1747613460527,-400.0,0.00013917,2]
[361561796,1747613460536,-400.0,0.00013917,2]
[361561797,1747613460546,-400.0,0.00013917,2]
[361561798,1747613460556,-587.7,0.00013917,2]
[361561799,1747613460565,-366.231479,0.00013917,2]
[361561800,1747613460575,-366.231479,0.00013917,2]
[361561801,1747613460584,-400.0,0.00013917,2]
[361561802,1747613460594,-781.77,0.00013917,2]
[361561803,1747613460603,-366.231479,0.00013917,2]
[361561804,1747613460616,-366.231479,0.00013917,2]
[361561805,1747613460626,-400.0,0.00013917,2]
[361561806,1747613460635,-191.15854551,0.00013917,2]
[361561807,1747613460644,-400.0,0.00013917,2]
[361561808,1747613460654,-533.67,0.00013917,2]
[361561809,1747613460663,-500.4,0.00013917,2]
[361561810,1747613460673,-469.82,0.00013917,2]
[361561811,1747613460683,-151.0,0.00013917,2]
[361561812,1747613460693,-1523.57,0.00013917,2]
[361561813,1747613460702,-151.0,0.00013917,2]
[361561814,1747613460711,-400.0,0.00013917,2]
[361561815,1747613460721,-412.08,0.00013917,2]
[361561816,1747613460730,-410.18,0.00013917,2]
[361561817,1747613460739,-823.42,0.00013917,2]
[361561818,1747613460749,-154.26770778,0.00013917,2]
[361561819,1747613460758,-400.0,0.00013917,2]
[361561820,1747613460767,-400.0,0.00013917,2]
[361561821,1747613460777,-151.0,0.00013917,2]
[361561822,1747613460787,-400.0,0.00013917,2]
[361561823,1747613460796,-151.0,0.00013917,2]
[361561824,1747613460806,-400.0,0.00013917,2]
[361561825,1747613460815,-880.66,0.00013917,2]
[361561826,1747613460825,-400.0,0.00013917,2]
[361561827,1747613460834,-400.0,0.00013917,2]
[361561828,1747613460844,-454.92,0.00013917,2]
[361561829,1747613460854,-151.0,0.00013917,2]
[361561830,1747613460868,-273.852179,0.00013917,2]
[361561831,1747613460877,-400.0,0.00013917,2]
[361561832,1747613460886,-150.0,0.00013917,2]
[361561833,1747613460895,-400.0,0.00013917,2]
[361561834,1747613460904,-400.0,0.00013917,2]
[361561835,1747613460913,-400.0,0.00013917,2]
[361561836,1747613460923,-882.63,0.00013917,2]
[361561837,1747613460933,-400.0,0.00013917,2]
[361561838,1747613460942,-1022.34,0.00013917,2]
[361561839,1747613460952,-400.0,0.00013917,2]
[361561840,1747613460962,-400.0,0.00013917,2]
[361561841,1747613460971,-400.0,0.00013917,2]
[361561842,1747613460981,-400.0,0.00013917,2]
[361561843,1747613460991,-400.0,0.00013917,2]
[361561844,1747613461001,-1192.1,0.00013917,2]
[361561845,1747613461010,-400.0,0.00013917,2]
[361561846,1747613461020,-761.68,0.00013917,2]
[361561847,1747613461029,-400.0,0.00013917,2]
[361561848,1747613461039,-400.0,0.00013917,2]
[361561849,1747613461049,-505.52,0.00013917,2]
[361561850,1747613461059,-400.0,0.00013917,2]
[361561851,1747613461073,-400.0,0.00013917,2]
[361561852,1747613461082,-151.0,0.00013917,2]
[361561853,1747613461092,-400.0,0.00013917,2]
[361561854,1747613461101,-400.0,0.00013917,2]
[361561855,1747613461116,-539.13,0.00013917,2]
[361561856,1747613461125,-464.51998306,0.00013917,2]
[361561857,1747613461135,-400.0,0.00013917,2]
[361561858,1747613461146,-402.82,0.00013917,2]
[361561859,1747613461156,-991.56,0.00013917,2]
[361561860,1747613461165,-646.05,0.00013917,2]
[361561861,1747613461174,-400.0,0.00013917,2]
[361561862,1747613461183,-896.48,0.00013917,2]
[361561863,1747613461193,-400.0,0.00013917,2]
[361561864,1747613461202,-201.098312,0.00013917,2]
[361561865,1747613461211,-400.0,0.00013917,2]
[361561866,1747613461220,-2048.06,0.00013917,2]
[361561867,1747613461229,-551.65,0.00013917,2]
[361561868,1747613461239,-440.76,0.00013917,2]
[361561869,1747613461248,-663.64,0.00013917,2]
[361561870,1747613461257,-689.9,0.00013917,2]
[361561871,1747613461266,-400.0,0.00013917,2]
[361561872,1747613461276,-400.0,0.00013917,2]
[361561873,1747613461286,-443.35,0.00013917,2]
[361561874,1747613461296,-1507.24,0.00013917,2]
[361561875,1747613461307,-400.0,0.00013917,2]
[361561876,1747613461317,-400.0,0.00013917,2]
[361561877,1747613461326,-444.57,0.00013917,2]
[361561878,1747613461335,-994.99,0.00013917,2]
[361561879,1747613461345,-400.0,0.00013917,2]
[361561880,1747613461354,-796.17,0.00013917,2]
[361561881,1747613461365,-400.0,0.00013917,2]
[361561882,1747613461375,-400.0,0.00013917,2]
[361561883,1747613461384,-768.48,0.00013917,2]
[361561884,1747613461393,-400.0,0.00013917,2]
[361561885,1747613461403,-151.0,0.00013917,2]
[361561886,1747613461412,-451.38,0.00013917,2]
[361561887,1747613461421,-198.489438,0.00013917,2]
[361561888,1747613461431,-400.0,0.00013917,2]
[361561889,1747613461441,-400.0,0.00013917,2]
[361561890,1747613461450,-400.0,0.00013917,2]
[361561891,1747613461459,-8062.83,0.00013917,2]
[361561892,1747613461469,-400.0,0.00013917,2]
[361561893,1747613461479,-198.489438,0.00013917,2]
[361561894,1747613461489,-1003.83,0.00013917,2]
[361561895,1747613461498,-2406.81,0.00013917,2]
[361561896,1747613461507,-1742.14,0.00013917,2]
[361561897,1747613461517,-400.0,0.00013917,2]
[361561898,1747613461526,-400.0,0.00013917,2]
[361561899,1747613461536,-400.0,0.00013917,2]
[361561900,1747613461545,-400.0,0.00013917,2]
[361561901,1747613461556,-400.0,0.00013917,2]
[361561902,1747613461566,-400.0,0.00013917,2]
[361561903,1747613461575,-1501.81,0.00013917,2]
[361561904,1747613461584,-1141.13,0.00013917,2]
[361561905,1747613461595,-607.19,0.00013917,2]
[361561906,1747613461605,-940.35,0.00013917,2]
[361561907,1747613461617,-748.05,0.00013917,2]
[361561908,1747613461627,-1030.22,0.00013917,2]
[361561909,1747613461637,-400.0,0.00013917,2]
[361561910,1747613461647,-4413.87,0.00013917,2]
[361561911,1747613461656,-400.0,0.00013917,2]
[361561912,1747613461666,-1000.0,0.00013917,2]
[361561913,1747613461675,-400.0,0.00013917,2]
[361561914,1747613461685,-701.91,0.00013917,2]
[361561915,1747613461694,-611.53,0.00013917,2]
[361561916,1747613461704,-641.87,0.00013917,2]
[361561917,1747613461713,-400.0,0.00013917,2]
[361561918,1747613461723,-400.0,0.00013917,2]
[361561919,1747613461732,-400.0,0.00013917,2]
[361561920,1747613461741,-449.0,0.00013917,2]